fUSD/lending_fUSD_20250923
["ID","MTS","AMOUNT","RATE_DAILY","PERIOD"]
[387148801,1758593453552,-400.0,0.00019993,2]
[387148802,1758593453561,-400.0,0.00019993,2]
[387148803,1758593453570,-400.0,0.00019993,2]
[387148804,1758593453579,-400.0,0.00019993,2]
[387148805,1758593453589,-400.0,0.00019993,2]
[387148806,1758593453598,-400.0,0.00019993,2]
[387148807,1758593453607,-400.0,0.00019993,2]
[387148808,1758593453617,-471.68222543,0.00019993,2]
[387148809,1758593453626,-400.0,0.00019993,2]
[387148810,1758593453635,-400.0,0.00019993,2]
[387148811,1758593453644,-400.98034928,0.00019993,2]
[387148812,1758593453653,-400.0,0.00019993,2]
[387148813,1758593453663,-400.0,0.00019993,2]
[387148814,1758593453672,-500.0,0.00019993,2]
[387148815,1758593453681,-400.0,0.00019993,2]
[387148816,1758593453691,-400.0,0.00019993,2]
[387148817,1758593453700,-425.65778771,0.00019993,2]
[387148818,1758593453709,-401.7486988,0.00019993,2]
[387148819,1758593453719,-400.0,0.00019993,2]
[387148820,1758593453728,-400.0,0.00019993,2]
[387148821,1758593453737,-400.0,0.00019993,2]
[387148822,1758593453746,-400.0,0.00019993,2]
[387148823,1758593453755,-400.0,0.00019993,2]
[387148824,1758593453765,-400.0,0.00019993,2]
[387148825,1758593453776,-400.0,0.00019993,2]
[387148826,1758593453786,-400.0,0.00019993,2]
[387148827,1758593453795,-400.0,0.00019993,2]
[387148828,1758593453805,-400.0,0.00019993,2]
[387148829,1758593453814,-400.0,0.00019993,2]
[387148830,1758593453824,-400.0,0.00019993,2]
[387148831,1758593453833,-400.0,0.00019993,2]
[387148832,1758593453843,-400.0,0.00019993,2]
[387148833,1758593453852,-400.0,0.00019993,2]
[387148834,1758593453862,-400.0,0.00019993,2]
[387148835,1758593453871,-400.0,0.00019993,2]
[387148836,1758593453882,-400.0,0.00019993,2]
[387148837,1758593453891,-400.0,0.00019993,2]
[387148838,1758593453901,-400.0,0.00019993,2]
[387148839,1758593453911,-452.91451086,0.00019993,2]
[387148840,1758593453921,-401.50684033,0.00019993,2]
[387148841,1758593453930,-400.0,0.00019993,2]
[387148842,1758593453940,-514.27955227,0.00019993,2]
[387148843,1758593453949,-402.63466826,0.00019993,2]
[387148844,1758593453960,-402.08884024,0.00019993,2]
[387148845,1758593453970,-404.08248045,0.00019993,2]
[387148846,1758593453980,-400.0,0.00019993,2]
[387148847,1758593453990,-402.49846504,0.00019993,2]
[387148848,1758593454000,-400.0,0.00019993,2]
[387148849,1758593454010,-400.0,0.00019993,2]
[387148850,1758593454020,-407.00593732,0.00019993,2]
[387148851,1758593454030,-411.35,0.00019993,2]
[387148852,1758593454039,-404.40688734,0.00019993,2]
[387148853,1758593454049,-400.0,0.00019993,2]
[387148854,1758593454059,-500.0,0.00019993,2]
[387148855,1758593454068,-400.0,0.00019993,2]
[387148856,1758593454077,-400.0,0.00019993,2]
[387148857,1758593454087,-403.75568971,0.00019993,2]
[387148858,1758593454097,-347.75559632,0.00019993,2]
[387148859,1758593454106,-500.0,0.00019993,2]
[387148860,1758593454116,-400.0,0.00019993,2]
[387148861,1758593454125,-403.38899143,0.00019993,2]
[387148862,1758593454135,-400.0,0.00019993,2]
[387148863,1758593454145,-402.46824221,0.00019993,2]
[387148864,1758593454154,-400.0,0.00019993,2]
[387148865,1758593454163,-402.68348708,0.00019993,2]
[387148866,1758593454173,-400.0,0.00019993,2]
[387148867,1758593454183,-407.06028012,0.00019993,2]
[387148868,1758593454192,-221.16146083,0.00019993,2]
[387148869,1758593454202,-400.0,0.00019993,2]
[387148870,1758593454211,-402.04629719,0.00019993,2]
[387148871,1758593454221,-404.92481538,0.00019993,2]
[387148872,1758593454236,-401.06106523,0.00019993,2]
[387148873,1758593454245,-532.16054688,0.00019993,2]
[387148874,1758593454255,-500.0,0.00019993,2]
[387148875,1758593454264,-402.40940814,0.00019993,2]
[387148876,1758593454275,-403.77092966,0.00019993,2]
[387148877,1758593454284,-524.22267079,0.00019993,2]
[387148878,1758593454294,-403.41076969,0.00019993,2]
[387148879,1758593454304,-400.0,0.00019993,2]
[387148880,1758593454314,-408.33103825,0.00019993,2]
[387148881,1758593454323,-400.0,0.00019993,2]
[387148882,1758593454332,-403.48730583,0.00019993,2]
[387148883,1758593454341,-403.26877035,0.00019993,2]
[387148884,1758593454351,-403.68761728,0.00019993,2]
[387148885,1758593454360,-402.63878417,0.00019993,2]
[387148886,1758593454370,-400.0,0.00019993,2]
[387148887,1758593454379,-402.66627713,0.00019993,2]
[387148888,1758593454388,-400.0,0.00019993,2]
[387148889,1758593454397,-400.0,0.00019993,2]
[387148890,1758593454407,-400.0,0.00019993,2]
[387148891,1758593454415,-410.56125294,0.00019993,2]
[387148892,1758593454425,-406.92058445,0.00019993,2]
[387148893,1758593454435,-401.65409901,0.00019993,2]
[387148894,1758593454444,-401.24631783,0.00019993,2]
[387148895,1758593454455,-400.0,0.00019993,2]
[387148896,1758593454464,-402.37340482,0.00019993,2]
[387148897,1758593454473,-404.94924456,0.00019993,2]
[387148898,1758593454483,-332.5633758,0.00019993,2]
[387148899,1758593454492,-400.0,0.00019993,2]
[387148900,1758593454504,-400.0,0.00019993,2]
[387148901,1758593454513,-400.0,0.00019993,2]
[387148902,1758593454523,-401.50406505,0.00019993,2]
[387148903,1758593454533,-400.0,0.00019993,2]
[387148904,1758593454542,-404.19910146,0.00019993,2]
[387148905,1758593454552,-403.13951317,0.00019993,2]
[387148906,1758593454562,-400.0,0.00019993,2]
[387148907,1758593454571,-404.6729203,0.00019993,2]
[387148908,1758593454581,-400.0,0.00019993,2]
[387148909,1758593454590,-400.0,0.00019993,2]
[387148910,1758593454599,-402.62286401,0.00019993,2]
[387148911,1758593454609,-401.38356698,0.00019993,2]
[387148912,1758593454618,-400.0,0.00019993,2]
[387148913,1758593454627,-400.0,0.00019993,2]
[387148914,1758593454638,-403.69244767,0.00019993,2]
[387148915,1758593454647,-400.0,0.00019993,2]
[387148916,1758593454657,-499.41621842,0.00019993,2]
[387148917,1758593454666,-400.0,0.00019993,2]
[387148918,1758593454675,-400.0,0.00019993,2]
[387148919,1758593454685,-308.0327964,0.00019993,2]
[387148920,1758593454694,-400.0,0.00019993,2]
[387148921,1758593454704,-400.0,0.00019993,2]
[387148922,1758593454713,-400.0,0.00019993,2]
[387148923,1758593454723,-500.0,0.00019993,2]
[387148924,1758593454732,-400.0,0.00019993,2]
[387148925,1758593454741,-400.0,0.00019993,2]
[387148926,1758593454752,-400.0,0.00019993,2]
[387148927,1758593454762,-400.0,0.00019993,2]
[387148928,1758593454772,-400.0,0.00019993,2]
[387148929,1758593454782,-400.0,0.00019993,2]
[387148930,1758593454791,-402.44496467,0.00019993,2]
[387148931,1758593454801,-400.0,0.00019993,2]
[387148932,1758593454810,-402.81101516,0.00019993,2]
[387148933,1758593454819,-405.41769703,0.00019993,2]
[387148934,1758593454828,-329.91888247,0.00019993,2]
[387148935,1758593454838,-500.0,0.00019993,2]
[387148936,1758593454849,-402.86238831,0.00019993,2]
[387148937,1758593454864,-420.80408704,0.00019993,2]
[387148938,1758593454875,-400.0,0.00019993,2]
[387148939,1758593454884,-400.0,0.00019993,2]
[387148940,1758593454894,-401.90823745,0.00019993,2]
[387148941,1758593454903,-400.0,0.00019993,2]
[387148942,1758593454912,-150.49,0.00019993,2]
[387148943,1758593454922,-759.27,0.00019993,2]
[387148944,1758593454932,-400.0,0.00019993,2]
[387148945,1758593454941,-400.0,0.00019993,2]
[387148946,1758593454951,-400.0,0.00019993,2]
[387148947,1758593454961,-400.0,0.00019993,2]
[387148948,1758593454970,-400.0,0.00019993,2]
[387148949,1758593454980,-403.37422525,0.00019993,2]
[387148950,1758593454989,-402.47607846,0.00019993,2]
[387148951,1758593454999,-400.0,0.00019993,2]
[387148952,1758593455009,-404.50184435,0.00019993,2]
[387148953,1758593455018,-402.92740069,0.00019993,2]
[387148954,1758593455029,-400.0,0.00019993,2]
[387148955,1758593455038,-400.0,0.00019993,2]
[387148956,1758593455048,-400.0,0.00019993,2]
[387148957,1758593455057,-538.56789958,0.00019993,2]
[387148958,1758593455066,-401.29073594,0.00019993,2]
[387148959,1758593455076,-377.24499696,0.00019993,2]
[387148960,1758593455085,-405.36818104,0.00019993,2]
[387148961,1758593455094,-400.0,0.00019993,2]
[387148962,1758593455104,-400.0,0.00019993,2]
[387148963,1758593455113,-408.62354048,0.00019993,2]
[387148964,1758593455122,-405.35512594,0.00019993,2]
[387148965,1758593455131,-400.0,0.00019993,2]
[387148966,1758593455140,-400.0,0.00019993,2]
[387148967,1758593455149,-407.31307058,0.00019993,2]
[387148968,1758593455159,-406.29291244,0.00019993,2]
[387148969,1758593455168,-400.0,0.00019993,2]
[387148970,1758593455177,-404.71475167,0.00019993,2]
[387148971,1758593455186,-402.47574989,0.00019993,2]
[387148972,1758593455196,-402.86944742,0.00019993,2]
[387148973,1758593455205,-151.0,0.00019993,2]
[387148974,1758593455214,-400.0,0.00019993,2]
[387148975,1758593455224,-400.0,0.00019993,2]
[387148976,1758593455237,-400.0,0.00019993,2]
[387148977,1758593455246,-400.0,0.00019993,2]
[387148978,1758593455255,-401.29117561,0.00019993,2]
[387148979,1758593455265,-400.0,0.00019993,2]
[387148980,1758593455275,-400.0,0.00019993,2]
[387148981,1758593455285,-400.0,0.00019993,2]
[387148982,1758593455294,-400.0,0.00019993,2]
[387148983,1758593455304,-534.19131296,0.00019993,2]
[387148984,1758593455313,-400.0,0.00019993,2]
[387148985,1758593455322,-401.15203092,0.00019993,2]
[387148986,1758593455331,-151.0,0.00019993,2]
[387148987,1758593455340,-400.0,0.00019993,2]
[387148988,1758593455349,-400.0,0.00019993,2]
[387148989,1758593455358,-400.0,0.00019993,2]
[387148990,1758593455368,-151.0,0.00019993,2]
[387148991,1758593455377,-151.0,0.00019993,2]
[387148992,1758593455386,-400.0,0.00019993,2]
[387148993,1758593455395,-151.0,0.00019993,2]
[387148994,1758593455405,-400.0,0.00019993,2]
[387148995,1758593455414,-151.0,0.00019993,2]
[387148996,1758593455423,-407.95683835,0.00019993,2]
[387148997,1758593455432,-400.0,0.00019993,2]
[387148998,1758593455441,-400.0,0.00019993,2]
[387148999,1758593455523,-151.0,0.00019993,2]
[387149000,1758593455533,-419.27481296,0.00019993,2]
[387149001,1758593455543,-400.0,0.00019993,2]
[387149002,1758593455551,-400.0,0.00019993,2]
[387149003,1758593455560,-400.0,0.00019993,2]
[387149004,1758593455569,-400.0,0.00019993,2]
[387149005,1758593455578,-400.0,0.00019993,2]
[387149006,1758593455588,-400.0,0.00019993,2]
[387149007,1758593455597,-400.0,0.00019993,2]
[387149008,1758593455606,-400.0,0.00019993,2]
[387149009,1758593455616,-400.0,0.00019993,2]
[387149010,1758593455625,-400.0,0.00019993,2]
[387149011,1758593455634,-151.0,0.00019993,2]
[387149012,1758593455643,-500.0,0.00019993,2]
[387149013,1758593455652,-151.0,0.00019993,2]
[387149014,1758593455661,-151.0,0.00019993,2]
[387149015,1758593455670,-179.639572,0.00019993,2]
[387149016,1758593455685,-500.0,0.00019993,2]
[387149017,1758593455694,-151.0,0.00019993,2]
[387149018,1758593455704,-500.0,0.00019994,2]
[387149019,1758593455713,-509.36387043,0.00019994,2]
[387149020,1758593455722,-500.0,0.00019994,2]
[387149021,1758593455731,-506.65782427,0.00019994,2]
[387149022,1758593455741,-500.0,0.00019994,2]
[387149023,1758593455749,-500.0,0.00019994,2]
[387149024,1758593455759,-759.27,0.00019998,2]
[387149025,1758593455768,-759.27,0.00019998,2]
[387149026,1758593455779,-417.365,0.00019998,2]
[387149027,1758593455790,-500.0,0.00019998,2]
[387149028,1758593455799,-500.0,0.00019998,2]
[387149029,1758593455808,-500.0,0.00019998,2]
[387149030,1758593455817,-500.0,0.00019998,2]
[387149031,1758593455826,-517.59,0.00019998,2]
[387149032,1758593455835,-1323.0,0.00019999,2]
[387149033,1758593455845,-1487.86694154,0.00019999,2]
[387149034,1758593455854,-500.0,0.00019999,2]
[387149035,1758593455863,-500.0,0.00019999,2]
[387149036,1758593455872,-500.0,0.00019999,2]
[387149037,1758593455882,-500.0,0.00019999,2]
[387149038,1758593455890,-500.0,0.00019999,2]
[387149039,1758593455899,-500.0,0.00019999,2]
[387149040,1758593455908,-500.0,0.00019999,2]
[387149041,1758593455917,-500.0,0.00019999,2]
[387149042,1758593455927,-500.0,0.00019999,2]
[387149043,1758593455936,-500.0,0.00019999,2]
[387149044,1758593455946,-500.0,0.00019999,2]
[387149045,1758593455956,-500.0,0.00019999,2]
[387149046,1758593455965,-500.0,0.00019999,2]
[387149047,1758593455975,-500.0,0.00019999,2]
[387149048,1758593455986,-500.0,0.00019999,2]
[387149049,1758593455996,-500.0,0.00019999,2]
[387149050,1758593456006,-500.0,0.00019999,2]
[387149051,1758593456020,-500.0,0.00019999,2]
[387149052,1758593456030,-500.0,0.00019999,2]
[387149053,1758593456039,-500.0,0.00019999,2]
[387149054,1758593456049,-759.27,0.00019999,2]
[387149055,1758593456058,-759.27,0.00019999,2]
[387149056,1758593456067,-759.27,0.00019999,2]
[387149057,1758593456077,-500.0,0.00019999,2]
[387149058,1758593456087,-500.0,0.00019999,2]
[387149059,1758593456095,-500.0,0.00019999,2]
[387149060,1758593456105,-500.0,0.00019999,2]
[387149061,1758593456114,-500.0,0.00019999,2]
[387149062,1758593456123,-151.102309,0.00019999,2]
[387149063,1758593456132,-151.0,0.00019999,2]
[387149064,1758593456141,-163.557835,0.00019999,2]
[387149065,1758593456151,-151.0,0.00019999,2]
[387149066,1758593456160,-151.0,0.00019999,2]
[387149067,1758593456169,-151.0,0.00019999,2]
[387149068,1758593456178,-500.0,0.00019999,2]
[387149069,1758593456187,-621.6019936,0.00019999,2]
[387149070,1758593456196,-500.0,0.00019999,2]
[387149071,1758593456205,-500.0,0.00019999,2]
[387149072,1758593456214,-500.0,0.00019999,2]
[387149073,1758593456225,-500.0,0.00019999,2]
[387149074,1758593456237,-151.0,0.00019999,2]
[387149075,1758593456246,-151.0,0.00019999,2]
[387149076,1758593456256,-1317.68,0.00019999,2]
[387149077,1758593456265,-1317.68,0.00019999,2]
[387149078,1758593456276,-1317.68,0.00019999,2]
[387149079,1758593456285,-1317.68,0.00019999,2]
[387149080,1758593456294,-1317.68,0.00019999,2]
[387149081,1758593456305,-500.0,0.00019999,2]
[387149082,1758593456314,-500.0,0.00019999,2]
[387149083,1758593456323,-500.0,0.00019999,2]
[387149084,1758593456333,-751.52,0.00019999,2]
[387149085,1758593456342,-751.52,0.00019999,2]
[387149086,1758593456351,-751.52,0.00019999,2]
[387149087,1758593456361,-751.52,0.00019999,2]
[387149088,1758593456370,-751.52,0.00019999,2]
[387149089,1758593456382,-500.0,0.00019999,2]
[387149090,1758593456391,-500.0,0.00019999,2]
[387149091,1758593456400,-500.0,0.00019999,2]
[387149092,1758593456409,-517.59,0.00019999,2]
[387149093,1758593456418,-500.0,0.00019999,2]
[387149094,1758593456427,-517.59,0.00019999,2]
[387149095,1758593456436,-500.0,0.00019999,2]
[387149096,1758593456445,-517.59,0.00019999,2]
[387149097,1758593456455,-517.59,0.00019999,2]
[387149098,1758593456464,-151.0,0.00019999,2]
[387149099,1758593456473,-133590.53752383,0.0002,2]
[387149100,1758593457619,-176.54773497,0.00018937,2]
[387149101,1758593457629,-187.622307,0.0001999,2]
[387149102,1758593457639,-400.0,0.0001999,2]
[387149103,1758593457648,-156.67783319,0.0001999,2]
[387149104,1758593457660,-243.32216681,0.0001999,2]
[387149105,1758593457670,-400.0,0.00019991,2]
[387149106,1758593457679,-287.03783319,0.00019991,2]
[387149107,1758593457691,-178.00777632,0.00019991,2]
[387149108,1758593457701,-400.0,0.00019991,2]
[387149109,1758593457710,-400.0,0.00019991,2]
[387149110,1758593457720,-95.49222368,0.00019991,2]
[387149111,1758593457732,-304.50777632,0.00019991,2]
[387149112,1758593457741,-467.797414,0.0002,2]
[387149113,1758593457753,-1200.69662182,0.0002,2]
[387149114,1758593458292,-400.0,0.00019899,2]
[387149115,1758593458303,-500.0,0.0001999,2]
[387149116,1758593458314,-400.0,0.0001999,2]
[387149117,1758593458324,-400.0,0.00019991,2]
[387149118,1758593458334,-30.68551966,0.00019991,2]
[387149119,1758593551485,10000.0,0.0001857,2]
[387149120,1758593648487,150.0,0.00019101,7]
[387149122,1758594031379,150.0,0.000181,2]
[387149123,1758594092861,500.0,0.00013699,2]
[387149124,1758594308589,159.62975587,0.00018468,2]
[387149125,1758594310477,4891.88785385,0.000154,2]
[387149126,1758594320459,7512.6227313,9e-05,2]
[387149134,1758594433304,400.00377922,0.0003,120]
[387149135,1758594459779,658222.84530719,0.000185,2]
[387149137,1758594473941,4363.79471845,0.00013,2]
[387149138,1758594478778,1752.61131789,0.000181,2]
[387149139,1758594496077,200.0,0.0001634,2]
[387149144,1758594524626,489.4091095,0.00018569,2]
[387149147,1758594557935,150.0,0.000171,2]
[387149148,1758594558266,150.0,0.0001828,2]
[387149163,1758594632534,-157.0217688,0.00019178,2]
[387149164,1758594632544,-150.0,0.0001947,2]
[387149165,1758594632554,-299.8869674,0.00019772,2]
[387149166,1758594632564,-580.81648741,0.00019799,2]
[387149167,1758594632574,-518.88868018,0.00019862,2]
[387149168,1758594632604,-649.01131982,0.00019862,2]
[387149169,1758594632614,-1167.9,0.00019872,2]
[387149170,1758594632623,-1200.0,0.00019885,2]
[387149171,1758594632634,-229.0,0.00019886,2]
[387149172,1758594632644,-8565.75555911,0.00019887,2]
[387149173,1758594632653,-151.78568314,0.00019887,2]
[387149174,1758594632663,-1292.20573053,0.00019887,2]
[387149175,1758594632673,-248.71531821,0.00019887,2]
[387149176,1758594632682,-197.04940166,0.00019889,2]
[387149177,1758594632692,-6328.41918521,0.00019889,2]
[387149178,1758594632701,-183.86035758,0.0001989,2]
[387149179,1758594632711,-441.52594224,0.00019891,2]
[387149180,1758594632720,-309.36761708,0.00019896,2]
[387149181,1758594632732,-132.15832514,0.00019896,2]
[387149182,1758594632741,-155.384,0.00019898,2]
[387149183,1758594632751,-400.0,0.00019899,2]
[387149184,1758594632760,-400.0,0.00019899,2]
[387149185,1758594632769,-400.0,0.00019899,2]
[387149186,1758594632778,-400.0,0.00019899,2]
[387149187,1758594632788,-400.0,0.00019899,2]
[387149188,1758594632797,-400.0,0.00019899,2]
[387149189,1758594632806,-400.0,0.00019899,2]
[387149190,1758594632815,-400.0,0.00019899,2]
[387149191,1758594632824,-401.04,0.00019899,2]
[387149192,1758594632837,-400.0,0.00019899,2]
[387149193,1758594632846,-400.0,0.00019899,2]
[387149194,1758594632856,-400.0,0.00019899,2]
[387149196,1758594632866,-400.0,0.00019899,2]
[387149197,1758594632875,-400.0,0.00019899,2]
[387149198,1758594632885,-400.0,0.00019899,2]
[387149199,1758594632894,-500.0,0.00019899,2]
[387149200,1758594632904,-403.38335093,0.00019899,2]
[387149201,1758594632913,-400.0,0.00019899,2]
[387149202,1758594632923,-400.0,0.00019899,2]
[387149203,1758594632932,-400.99041864,0.00019899,2]
[387149204,1758594632942,-400.0,0.00019899,2]
[387149205,1758594632951,-400.0,0.00019899,2]
[387149206,1758594632961,-400.0,0.00019899,2]
[387149207,1758594632970,-408.39968826,0.00019899,2]
[387149208,1758594632980,-400.0,0.00019899,2]
[387149209,1758594632990,-285.63,0.00019899,2]
[387149210,1758594632999,-400.0,0.00019899,2]
[387149211,1758594633008,-400.0,0.00019899,2]
[387149212,1758594633018,-400.0,0.00019899,2]
[387149213,1758594633027,-402.31842778,0.00019899,2]
[387149214,1758594633036,-400.0,0.00019899,2]
[387149215,1758594633047,-400.0,0.00019899,2]
[387149216,1758594633057,-400.0,0.00019899,2]
[387149217,1758594633066,-142.45743663,0.00019899,2]
[387149218,1758594633084,-257.54256337,0.00019899,2]
[387149219,1758594633094,-400.0,0.00019899,2]
[387149220,1758594633105,-404.24121878,0.00019899,2]
[387149221,1758594633115,-400.0,0.00019899,2]
[387149222,1758594633126,-400.0,0.00019899,2]
[387149223,1758594633136,-519.46,0.00019899,2]
[387149224,1758594633147,-467.85,0.00019899,2]
[387149225,1758594633157,-400.0,0.00019899,2]
[387149226,1758594633167,-650.92,0.00019899,2]
[387149227,1758594633178,-400.0,0.00019899,2]
[387149228,1758594633188,-400.0,0.00019899,2]
[387149229,1758594633198,-559.64,0.00019899,2]
[387149230,1758594633209,-472.77,0.00019899,2]
[387149231,1758594633220,-400.0,0.00019899,2]
[387149232,1758594633230,-400.0,0.00019899,2]
[387149233,1758594633240,-400.0,0.00019899,2]
[387149234,1758594633250,-416.5,0.00019899,2]
[387149235,1758594633260,-400.0,0.00019899,2]
[387149236,1758594633270,-400.0,0.00019899,2]
[387149237,1758594633280,-400.0,0.00019899,2]
[387149238,1758594633290,-490.56567391,0.00019899,2]
[387149239,1758594633300,-400.0,0.00019899,2]
[387149240,1758594633310,-220.39019645,0.00019899,2]
[387149241,1758594633388,-215.99980355,0.00019899,2]
[387149242,1758594633398,-400.0,0.00019899,2]
[387149243,1758594633408,-400.0,0.00019899,2]
[387149244,1758594633424,-923.4,0.00019899,2]
[387149245,1758594633434,-400.0,0.00019899,2]
[387149246,1758594633444,-400.0,0.00019899,2]
[387149247,1758594633454,-400.0,0.00019899,2]
[387149248,1758594633464,-403.02,0.00019899,2]
[387149249,1758594633474,-400.0,0.00019899,2]
[387149250,1758594633484,-400.0,0.00019899,2]
[387149251,1758594633494,-203.93076062,0.00019899,2]
[387149252,1758594633567,-196.06923938,0.00019899,2]
[387149253,1758594633577,-400.0,0.00019899,2]
[387149254,1758594633587,-400.0,0.00019899,2]
[387149255,1758594633596,-400.0,0.00019899,2]
[387149256,1758594633606,-400.0,0.00019899,2]
[387149257,1758594633616,-400.0,0.00019899,2]
[387149258,1758594633625,-400.0,0.00019899,2]
[387149259,1758594633637,-400.0,0.00019899,2]
[387149260,1758594633647,-400.0,0.00019899,2]
[387149261,1758594633657,-218.03029943,0.00019899,2]
[387149262,1758594633684,-181.96970057,0.00019899,2]
[387149263,1758594633695,-400.0,0.00019899,2]
[387149264,1758594633705,-400.0,0.00019899,2]
[387149265,1758594633715,-400.0,0.00019899,2]
[387149266,1758594633726,-400.0,0.00019899,2]
[387149267,1758594633736,-400.0,0.00019899,2]
[387149268,1758594633747,-500.0,0.00019899,2]
[387149269,1758594633756,-400.0,0.00019899,2]
[387149270,1758594633766,-400.0,0.00019899,2]
[387149271,1758594633775,-412.71752199,0.00019899,2]
[387149272,1758594633786,-400.0,0.00019899,2]
[387149273,1758594633796,-400.0,0.00019899,2]
[387149274,1758594633806,-500.0,0.00019899,2]
[387149275,1758594633815,-400.0,0.00019899,2]
[387149276,1758594633826,-400.0,0.00019899,2]
[387149277,1758594633836,-400.0,0.00019899,2]
[387149278,1758594633847,-400.0,0.00019899,2]
[387149279,1758594633857,-400.0,0.00019899,2]
[387149280,1758594633867,-400.0,0.00019899,2]
[387149281,1758594633877,-400.0,0.00019899,2]
[387149282,1758594633887,-400.0,0.00019899,2]
[387149283,1758594633896,-2152.48,0.00019899,2]
[387149284,1758594633906,-151.86005896,0.00019899,2]
[387149285,1758594633915,-4852.06455172,0.000199,2]
[387149286,1758594633932,-208.06544828,0.000199,2]
[387149287,1758594633942,-208.0,0.000199,2]
[387149288,1758594633951,-208.71,0.000199,2]
[387149289,1758594633961,-441.52594222,0.000199,2]
[387149290,1758594633970,-8882.6885148,0.00019942,2]
[387149291,1758594633980,-1167.9,0.00019964,2]
[387149292,1758594633990,-514.0,0.0001997,2]
[387149293,1758594634000,-503.64046835,0.00019973,2]
[387149294,1758594634010,-436.58783742,0.00019973,2]
[387149295,1758594634020,-501.76407904,0.00019973,2]
[387149296,1758594634029,-4802.0,0.00019973,2]
[387149297,1758594634039,-163.064755,0.00019973,2]
[387149298,1758594634049,-500.0,0.00019973,2]
[387149299,1758594634059,-337.0815596,0.00019973,2]
[387149300,1758594634069,-501.20797104,0.00019973,2]
[387149301,1758594634079,-501.64461782,0.00019973,2]
[387149302,1758594634089,-500.0,0.00019973,2]
[387149303,1758594634099,-222.49215277,0.00019973,2]
[387149304,1758594634110,-500.0,0.00019973,2]
[387149305,1758594634120,-500.0,0.00019973,2]
[387149306,1758594634130,-164.74157893,0.00019973,2]
[387149307,1758594634140,-308.37725631,0.00019973,2]
[387149308,1758594634150,-173.73365487,0.00019977,2]
[387149309,1758594634159,-500.0,0.00019977,2]
[387149310,1758594634169,-500.0,0.00019977,2]
[387149311,1758594634179,-413.66144338,0.00019977,2]
[387149312,1758594634189,-322.6107,0.00019978,2]
[387149313,1758594634199,-151.0,0.00019978,2]
[387149314,1758594634210,-500.0,0.00019978,2]
[387149315,1758594634219,-206.17549459,0.00019978,2]
[387149316,1758594634229,-500.0,0.00019978,2]
[387149317,1758594634238,-200.0,0.00019978,2]
[387149318,1758594634248,-500.0,0.00019978,2]
[387149319,1758594634257,-200.0,0.00019978,2]
[387149320,1758594634267,-500.0,0.00019978,2]
[387149321,1758594634276,-200.0,0.00019978,2]
[387149322,1758594634285,-200.0,0.00019978,2]
[387149323,1758594634295,-500.0,0.00019978,2]
[387149324,1758594634304,-167.36812519,0.00019978,2]
[387149325,1758594634314,-500.0,0.00019978,2]
[387149326,1758594634323,-500.0,0.00019978,2]
[387149327,1758594634334,-500.0,0.00019978,2]
[387149328,1758594634343,-500.0,0.00019978,2]
[387149329,1758594634353,-500.0,0.00019978,2]
[387149330,1758594634363,-151.86179462,0.00019978,2]